Cogmind - Beta 16.1 @@@ ROGUE MODE // 2026.04.27 @ 17:40:19 Player: Bereft Result: Destroyed by G-50 Soldier with Heavy Laser Performance ------------- Evolutions (4) 2000 Regions Visited (10) 2000 Robots Destroyed (58) 290 Value Destroyed (2003) 2003 Prototype IDs (4) 80 Alien Tech Used (0) 0 Bonus (877) 877 TOTAL SCORE: 7250 Bonus ------- Follower Combat Kills 77 Entered DSFs 500 Acquired ECA 300 Cogmind --------- Core Integrity 0/850 Matter 270/300 Energy 25/100 System Corruption 48% Temperature Warm (160) Movement Treading (160) Location -6/Lower Caves Parts ------- > --- POWER (2) -------- (None) > --- PROPULSION (4) --- Light Treads > --- UTILITY (6) ------ Advanced Terrain Scan Processor Encrypted Comm Array ECM Suite Hardened Medium Armor Plating > --- WEAPON (3) ------- Flak Gun Makeshift Hammer > --- INVENTORY (5) ---- Improved Particle Charger EM Shield Remote Datajack Peak State ------------ > --- POWER ------------ Antimatter Reactor Antimatter Reactor > --- PROPULSION ------- Field Propulsion Drive Experimental Cesium-ion Thruster Impulse Thruster > --- UTILITY ---------- Improved Cooling System Machine Analyzer Advanced Actuator Array Improved Light Armor Plating Improved Light Armor Plating > --- WEAPON ----------- Heavy Particle Cannon Battle Rifle > --- INVENTORY -------- High-capacity Battery Small Matter Pod Melee Analysis Suite Heavy Beamcaster Heavy Beamcaster [Rating: 60] Favorites ----------- Power Improved Ion Engine Engine Improved Ion Engine Power Core Micro Nuclear Core Reactor Antimatter Reactor Propulsion Flight Unit Treads Light Treads Leg Flexi-carbon Leg Hover Unit Hover Unit Flight Unit Flight Unit Utility Small Storage Unit Device Weight Redist. System Storage Small Storage Unit Processor Signal Interpreter Hackware System Shield Protection Improved Light Armor Plating Weapon Gauss Cannon Energy Gun Pulse Rifle Energy Cannon Heavy Particle Cannon Ballistic Gun Light Assault Rifle Ballistic Cannon Gauss Cannon Launcher Grenade Launcher Impact Weapon Makeshift Hammer Slashing Weapon Dual-blade Saw Build | -11 -10 -9 -9 -8 -7 -7 -7 -7 -6 -6 ------- Run | Yrd Mat Mat Min Mat Fac Was Fac DSF Fac Low Slots Evolved 8 | . . 2 . 2 2 . . . 2 . Power 1 | . . . . . 1 . . . . . Propulsion 2 | . . 1 . 1 . . . . . . Utility 4 | . . 1 . 1 1 . . . 1 . Weapon 1 | . . . . . . . . . 1 . Parts Attached 108 | 8 14 17 3 5 1 19 4 16 3 18 Power 17 | 1 3 4 1 1 . 2 . 4 . 1 Engine 14 | 1 3 4 1 1 . . . 3 . 1 Core 1 | . . . . . . . . 1 . . Reactor 2 | . . . . . . 2 . . . . Propulsion 28 | 2 7 4 . . . 4 . 7 1 3 Treads 3 | . . . . . . 1 . . . 2 Leg 14 | 2 3 . . . . . . 7 1 1 Wheel . | . . . . . . . . . . . Hover 2 | . 2 . . . . . . . . . Flight 9 | . 2 4 . . . 3 . . . . Utility 32 | 2 . 3 2 3 1 7 3 3 1 7 Device 13 | 1 . 1 . 3 . 4 . . 1 3 Storage 5 | 1 . 1 1 . . . . 2 . . Processor 5 | . . 1 1 . 1 . . 1 . 1 Hackware 1 | . . . . . . . 1 . . . Protection 8 | . . . . . . 3 2 . . 3 Artifact . | . . . . . . . . . . . Weapon 31 | 3 4 6 . 1 . 6 1 2 1 7 Energy Gun 10 | 2 . 2 . 1 . 2 . . . 3 Energy Cannon 2 | . . . . . . . 1 . . 1 Ballistic Gun 13 | 1 3 4 . . . 3 . . . 2 Ballistic Cannon 3 | . . . . . . . . 2 1 . Launcher 1 | . 1 . . . . . . . . . Special Weapon . | . . . . . . . . . . . Impact Weapon 1 | . . . . . . . . . . 1 Slashing Weapon 1 | . . . . . . 1 . . . . Piercing Weapon . | . . . . . . . . . . . Special Melee Weapon . | . . . . . . . . . . . Unidentified Prototypes 4 | . . 1 . . . 3 . . . . Corrupted Parts 6 | . . . . . . . . . . 6 System Corruption 48 | . . . . . . . . . . 48 Parts Lost 51 | . 4 9 . 9 . . . 11 . 18 Power 10 | . . 3 . 1 . . . 3 . 3 Propulsion 20 | . 4 4 . 2 . . . 5 . 5 Utility 10 | . . . . 4 . . . 3 . 3 Weapon 11 | . . 2 . 2 . . . . . 7 Highest Loss Streak 10 | . 2 5 . 8 . . . 6 . 10 To Critical Strikes 3 | . 1 . . . . . . . . 2 Average Backups 6 | 2 7 7 7 7 5 5 5 4 3 3 Power . | . 1 . . . . . . . . . Propulsion . | . . 1 1 . . . . . . . Utility 4 | . 3 5 5 6 5 3 3 2 1 2 Weapon 1 | 1 1 . . . . 1 2 2 1 . Tool/Special . | . . . . . . . . . . . Unused Backups 11 | . 2 . . 3 . 2 1 . . 3 Power 1 | . 1 . . . . . . . . . Propulsion 1 | . . . . 1 . . . . . . Utility 7 | . . . . 2 . 2 1 . . 2 Weapon 1 | . 1 . . . . . . . . . Tool/Special 1 | . . . . . . . . . . 1 Average Slot Usage (%) 69 | . 93 74 66 66 1 58 91 81 98 42 Engine 7 | . 14 9 11 8 . . . 6 13 2 Reactor 1 | . . . . . . 5 15 3 . . Leg 5 | . 18 . . . . . . 13 25 3 Flight 11 | . 3 15 22 16 . 14 23 6 . . Device 11 | . 12 10 11 16 . 13 8 5 5 10 Storage 7 | . 14 11 11 8 . . . 5 13 1 Processor 6 | . . 11 10 8 1 7 7 7 13 4 Hackware 1 | . . . . . . . 5 7 6 . Protection 2 | . . . . . . 2 15 6 . 5 Energy Gun 3 | . 6 . . 6 . . 5 2 3 2 Ballistic Gun 4 | . 11 16 . . . 10 3 . . 2 Ballistic Cannon 1 | . . . . . . . . 10 15 . Launcher 1 | . 8 . . . . . . . . . Peak Build Rating 60 | 7 8 14 11 19 3 57 60 60 58 56 Average Rating 22 | 5 7 10 9 15 . 42 59 44 55 22 On Entrance 22 | . 7 5 12 9 . 3 57 60 42 56 Avg Prop Armor Cover (%) 5 | . 8 . . . . . . 1 . 7 Naked Turns 187 | . . . . 19 102 . . . . 66 Heaviest Build 55 | 13 15 15 15 16 . 55 55 51 53 30 Greatest Support 80 | 20 20 18 14 17 3 70 19 80 71 71 Greatest Overweight (x) 4 | . 4 4 1 3 . 2 2 2 . 3 Average Overweight (x) . | . . . . . . . 2 . . . Largest Inventory Capacity 8 | 8 8 8 8 8 5 5 5 5 5 5 Average Capacity 6 | 7 8 8 8 7 5 5 5 5 5 5 Most Carried 8 | 5 8 8 8 8 5 5 5 5 5 5 Average Carried 6 | 2 7 7 7 7 5 4 5 4 3 3 Final Capacity 8 | 8 8 8 8 5 5 5 5 5 5 5 Final Carried 8 | 5 8 7 8 5 5 5 5 3 5 3 Class Distribution -------------------- 73% | Mutant 13% | Scavenger-Mutant 5% | Scavenger-Skirmisher 4% | Derelict-Mutant Dominant Class ---------------- Mutant | -10/Materials Scavenger-Mutant | -9/Materials Mutant | -9/Mines Mutant | -8/Materials Mutant | -7/Factory Mutant | -7/Waste Mutant | -7/Factory Scavenger-Mutant | -7/DSF Scavenger-Skirmisher | -6/Factory Mutant | -6/Lower Caves Resources | -11 -10 -9 -9 -8 -7 -7 -7 -7 -6 -6 ----------- Run | Yrd Mat Mat Min Mat Fac Was Fac DSF Fac Low Matter Collected 2188 | 330 232 274 50 103 . 200 . 708 . 291 Remotely . | . . . . . . . . . . . Salvage Created 2109 | 194 363 467 . 162 . . . 498 . 425 Parts 116 | 13 25 30 . 8 . . . 28 . 12 Haulers Intercepted . | . . . . . . . . . . . Recyclers Shooed 3 | 1 1 1 . . . . . . . . Parts Field Recycled . | . . . . . . . . . . . Retrieved Matter . | . . . . . . . . . . . Parts Self-Destructed 10 | . . . . . . . . . . 10 Prevented 8 | . . . . . . . . . . 8 Parts Restored . | . . . . . . . . . . . Kills | -11 -10 -9 -9 -8 -7 -7 -7 -7 -6 -6 ------- Run | Yrd Mat Mat Min Mat Fac Was Fac DSF Fac Low Combat Hostiles Destroyed 48 | . 10 14 . 4 . . . 13 . 7 Melee 1 | . . . . . . . . . . 1 Guns 29 | . 8 14 . 4 . . . 1 . 2 Cannons 13 | . . . . . . . . 12 . 1 AOE 1 | . 1 . . . . . . . . . Classes Destroyed 12 | 3 4 2 . 1 . . . 2 . . Worker 1 | 1 . . . . . . . . . . Builder 1 | . 1 . . . . . . . . . Tunneler 4 | 4 . . . . . . . . . . Recycler 1 | 1 . . . . . . . . . . Watcher 3 | . 3 . . . . . . . . . Swarmer 13 | . 3 6 . . . . . 4 . . Grunt 15 | . 7 3 . 1 . . . 2 . 2 Brawler 2 | . . . . 1 . . . . . 1 Duelist 3 | . . 1 . . . . . 1 . 1 Sentry 8 | . . 4 . 2 . . . . . 2 Specialist 5 | . . . . . . . . 5 . . Hunter 2 | . . . . . . . . 1 . 1 Best Kill Streak 5 | 5 4 3 . 2 . . . 5 . 2 Combat Bots Only 5 | . 3 3 . 2 . . . 5 . 2 Max Kills in Single Turn 2 | 1 1 1 . 1 . . . 2 . 1 Gunslinging . | . . . . . . . . . . . Exploded 1 | . 1 . . . . . . . . . Melee 1 | . . . . . . . . . . 1 Uniques/NPCs Destroyed . | . . . . . . . . . . . Combat | -11 -10 -9 -9 -8 -7 -7 -7 -7 -6 -6 -------- Run | Yrd Mat Mat Min Mat Fac Was Fac DSF Fac Low Hostile Shots Fired 669 | . 82 112 1 42 22 . . 148 . 262 Missed 208 | . 20 26 1 10 13 . . 45 . 93 Hits 461 | . 62 86 . 32 9 . . 103 . 169 Melee 20 | . . 2 . 6 . . . . . 12 Projectile 441 | . 62 84 . 26 9 . . 103 . 157 Critical Strikes 20 | . 2 1 . 3 . . . 1 . 13 Damage Taken 7302 | . 761 913 . 586 57 . 3 1950 . 3032 Core 1824 | . 145 255 . 222 57 . 1 277 . 867 Absorbed by Shields . | . . . . . . . . . . . Redirected to Shielding 79 | . . . . . . . . . . 79 Core Remaining (%) 57 | 100 42 . 36 59 . . . 52 . . Volleys Fired 256 | 18 87 53 . 23 . . 5 41 7 22 Largest 3 | 2 2 2 . 2 . . 2 2 3 3 Hottest 161 | 80 80 40 . 86 . . 156 156 161 120 Shots Fired 417 | 36 112 89 . 26 . . 10 82 21 41 Gun 297 | 36 109 89 . 26 . . 7 9 1 20 Cannon 117 | . . . . . . . 3 73 20 21 Launcher 3 | . 3 . . . . . . . . . Special . | . . . . . . . . . . . Kinetic 288 | . 70 89 . 12 . . 4 64 20 29 Thermal 122 | 36 39 . . 14 . . 6 18 1 8 Explosive 3 | . 3 . . . . . . . . . Electromagnetic 4 | . . . . . . . . . . 4 Robot Hit Streak 18 | 6 7 9 . 18 . . . 16 . 6 Robot Miss Streak 7 | 2 7 5 . 1 . . . 6 . 7 Penetration Max 1 | . . . . . . . . 1 . . Secondary Targets 2 | . 2 . . . . . . . . . Max Gunslinging Chain 1 | . 1 . . . . . . . . . Shots Hit Robots 246 | 23 62 59 . 26 . . . 43 . 33 Core Hits 115 | 7 33 29 . 9 . . . 22 . 15 Critical Kills 1 | . . . . 1 . . . . . . Critical Parts Destroyed 1 | . . . . . . . . . . 1 Critical Strikes 14 | . . . . 1 . . . 7 . 6 Burn 1 | . . . . . . . . 1 . . Destroy 1 | . . . . 1 . . . . . . Blast 10 | . . . . . . . . 6 . 4 Smash 2 | . . . . . . . . . . 2 Melee Attacks 11 | . . . . . . . . . . 11 Impact 11 | . . . . . . . . . . 11 Slashing . | . . . . . . . . . . . Piercing . | . . . . . . . . . . . Sneak Attacks . | . . . . . . . . . . . Combat Hostiles . | . . . . . . . . . . . Follow-up Attacks . | . . . . . . . . . . . Damage Inflicted 4209 | 255 684 537 . 472 . . . 1310 . 951 Guns 2302 | 255 619 537 . 470 . . . 161 . 260 Cannons 1524 | . . . . . . . . 1149 . 375 Explosions 65 | . 65 . . . . . . . . . Melee 316 | . . . . . . . . . . 316 Ramming 2 | . . . . 2 . . . . . . Kinetic 2503 | . 274 537 . 230 . . . 999 . 463 Thermal 1234 | 255 345 . . 240 . . . 311 . 83 Explosive 65 | . 65 . . . . . . . . . Electromagnetic 89 | . . . . . . . . . . 89 Impact 316 | . . . . . . . . . . 316 Slashing . | . . . . . . . . . . . Piercing . | . . . . . . . . . . . Highest Corruption 48 | . . . . 11 . . . . . 48 Average Corruption 22 | . . . . 10 . . . . . 25 Corruption Purged . | . . . . . . . . . . . Corruption Blocked . | . . . . . . . . . . . Effects 25 | . . . . 4 . . . . . 21 Message Errors 4 | . . . . 2 . . . . . 2 Matter Fused 3 | . . . . . . . . . . 3 Heat Flow Errors 5 | . . . . . . . . . . 5 Energy Discharges 1 | . . . . . . . . . . 1 Parts Rejected 1 | . . . . . . . . . . 1 Data Loss (minor) 5 | . . . . 1 . . . . . 4 Data Loss (major) 1 | . . . . . . . . . . 1 Misdirections 2 | . . . . . . . . . . 2 Weapon Failures 3 | . . . . 1 . . . . . 2 Overload Shots . | . . . . . . . . . . . Overflow Damage 70 | . . . . . . . . 19 . 51 Projectiles 19 | . . . . . . . . 19 . . Explosions . | . . . . . . . . . . . Melee 51 | . . . . . . . . . . 51 Knockbacks 8 | . . . . 1 . . . 5 . 2 Impact 1 | . . . . 1 . . . . . . Kinetic 6 | . . . . . . . . 5 . 1 Secondary 1 | . . . . . . . . . . 1 Self-Inflicted Damage 4 | . . . . 1 . . 3 . . . Shots 1 | . . . . . . . 1 . . . Rammed 2 | . . . . 2 . . . . . . Targets Rammed 3 | . 1 . . 2 . . . . . . Kicked 1 | . 1 . . . . . . . . . Crushed . | . . . . . . . . . . . Highest Temperature 437 | 162 437 409 . 158 . 156 414 22 162 298 Average Temperature 108 | 56 185 98 . 68 . 80 119 10 62 117 Received Heat Transfer 1536 | . 336 147 . 216 18 . . 144 . 675 Effects 11 | . 7 3 . . . . . . . 1 Shutdowns 3 | . 3 . . . . . . . . . Energy Bleed 2 | . 2 . . . . . . . . . Interference 4 | . . 3 . . . . . . . 1 Short Circuit 2 | . 2 . . . . . . . . . Siege Activations . | . . . . . . . . . . . Martial Activations . | . . . . . . . . . . . Shielding Activations . | . . . . . . . . . . . Robots Disrupted . | . . . . . . . . . . . Combat Hostiles . | . . . . . . . . . . . Robots Corrupted 3 | . . . . . . . . . . 3 Combat Hostiles 3 | . . . . . . . . . . 3 Parts Fried 3 | . . . . . . . . . . 3 Impact Corruptions 5 | . . . . . . . . . . 5 Robots Melted 1 | . 1 . . . . . . . . . Combat Hostiles 1 | . 1 . . . . . . . . . Parts Melted 2 | . 2 . . . . . . . . . Heat Transferred 2572 | 575 775 . . 518 . . . 555 . 149 Parts Sabotaged . | . . . . . . . . . . . Parts Stolen . | . . . . . . . . . . . Parts Stripped . | . . . . . . . . . . . Power Chain Reactions 1 | . . . . . . . 1 . . . Alert | -11 -10 -9 -9 -8 -7 -7 -7 -7 -6 -6 ------- Run | Yrd Mat Mat Min Mat Fac Was Fac DSF Fac Low Maximum Alert Level 1 | . . 1 . . . . . 1 . . Low Security (%) 97 | 100 100 93 100 100 100 100 100 77 100 . Level 1 2 | . . 6 . . . . . 22 . . Level 2 . | . . . . . . . . . . . Level 3 . | . . . . . . . . . . . Level 4 . | . . . . . . . . . . . Level 5 . | . . . . . . . . . . . High Security . | . . . . . . . . . . . Max Security . | . . . . . . . . . . . Sterilizations 1 | . . . . . . . . 1 . . Peak Influence 305 | 10 80 210 73 44 37 . 30 305 159 . Initial 159 | . . . 73 . 9 . . . 159 . Average 29 | 1 22 130 10 3 12 . 1 107 102 . Influence Increases 1791 | 30 326 440 91 143 28 . 30 415 38 250 Destroy 0b10 Robot/C 1020 | . 200 280 60 80 . . . 260 . 140 Destroy 0b10 Robot/NC 50 | 30 20 . . . . . . . . . Destroy Leader 236 | . 56 70 10 30 . . . 50 . 20 Allied During Kill 6 | . . . 6 . . . . . . . Successful Hack 43 | . . . . 3 28 . . . 12 . Disable Machine 60 | . . . . . . . 30 15 15 . Destroy Structure 31 | . 20 . . . . . . . 11 . Partial Spotted 15 | . . . . 15 . . . . . . Lose Combat Pursuer 330 | . 30 90 15 15 . . . 90 . 90 Influence Decreases 1767 | 30 325 251 281 122 49 . 30 110 306 263 Entered New Map 291 | . . 1 117 . 12 . . . 146 15 Time Decay 1089 | 30 285 160 144 97 37 . 30 . 160 146 Lost Part 367 | . 40 90 . 25 . . . 110 . 102 Lost Ally 20 | . . . 20 . . . . . . . Squads Dispatched 7 | . 2 1 . 1 1 . . 2 . . Investigation 3 | . 1 1 . 1 . . . . . . Extermination . | . . . . . . . . . . . Reinforcement 4 | . 1 . . . 1 . . 2 . . Assault . | . . . . . . . . . . . Garrison . | . . . . . . . . . . . Intercept . | . . . . . . . . . . . Searches Triggered . | . . . . . . . . . . . Construction Impeded . | . . . . . . . . . . . Haulers Reinforced . | . . . . . . . . . . . Active Scanning Responses . | . . . . . . . . . . . Cargo Convoy Interrupts . | . . . . . . . . . . . Stealth | -11 -10 -9 -9 -8 -7 -7 -7 -7 -6 -6 --------- Run | Yrd Mat Mat Min Mat Fac Was Fac DSF Fac Low Distress Signals 5 | . 2 2 . 1 . . . . . . Communications Jammed . | . . . . . . . . . . . Distress Signals . | . . . . . . . . . . . Times Spotted 98 | . 19 26 4 9 4 . . 18 . 18 Peak Tracking Total 8 | . 6 8 2 4 3 . . 5 . 7 Tactical Retreats 13 | . 1 2 1 1 . . . 5 . 3 Traps | -11 -10 -9 -9 -8 -7 -7 -7 -7 -6 -6 ------- Run | Yrd Mat Mat Min Mat Fac Was Fac DSF Fac Low Traps Triggered 5 | . 2 1 . . 2 . . . . . Indirectly . | . . . . . . . . . . . Trap Hack Attempts . | . . . . . . . . . . . Triggered . | . . . . . . . . . . . Disarmed . | . . . . . . . . . . . Reprogrammed . | . . . . . . . . . . . Reused . | . . . . . . . . . . . Traps Extracted . | . . . . . . . . . . . Installed . | . . . . . . . . . . . Triggered . | . . . . . . . . . . . Machines | -11 -10 -9 -9 -8 -7 -7 -7 -7 -6 -6 ---------- Run | Yrd Mat Mat Min Mat Fac Was Fac DSF Fac Low Machines Disabled 5 | . . . . . . . 2 1 1 1 Max in Single Turn 2 | . . . . . . . 2 1 1 1 Machines Repaired . | . . . . . . . . . . . Machines Dismantled . | . . . . . . . . . . . Machines Sabotaged . | . . . . . . . . . . . Overloaded Fab Kills . | . . . . . . . . . . . Hacking | -11 -10 -9 -9 -8 -7 -7 -7 -7 -6 -6 --------- Run | Yrd Mat Mat Min Mat Fac Was Fac DSF Fac Low Machines Accessed 9 | . . . . 4 2 . 1 . 2 . Terminals 5 | . . . . 2 1 . 1 . 1 . Fabricators 1 | . . . . . 1 . . . . . Repair Stations . | . . . . . . . . . . . Recycling Units 2 | . . . . 2 . . . . . . Scanalyzers 1 | . . . . . . . . . 1 . Garrison Access . | . . . . . . . . . . . Total Hacks 18 | . . . . 7 3 . 1 . 7 . Successful 8 | . . . . 3 3 . 1 . 1 . Failed 10 | . . . . 4 . . . . 6 . Catastrophic . | . . . . . . . . . . . Database Lockouts . | . . . . . . . . . . . Manual 9 | . . . . 7 2 . . . . . Terminals 7 | . . . . 3 2 . 1 . 1 . Fabricators 1 | . . . . . 1 . . . . . Repair Stations . | . . . . . . . . . . . Recycling Units 4 | . . . . 4 . . . . . . Scanalyzers 6 | . . . . . . . . . 6 . Garrison Access . | . . . . . . . . . . . Terminal Hacks 1 | . . . . . . . 1 . . . Open DSF 1 | . . . . . . . 1 . . . Fabricator Hacks 1 | . . . . . 1 . . . . . Network Status 1 | . . . . . 1 . . . . . Repair Station Hacks . | . . . . . . . . . . . Recycling Unit Hacks . | . . . . . . . . . . . Scanalyzer 1 | . . . . . . . . . 1 . Retrieve Study 1 | . . . . . . . . . 1 . Garrison Access Hacks . | . . . . . . . . . . . Unauthorized Hacks 5 | . . . . 3 2 . . . . . Terminals 4 | . . . . 2 2 . . . . . Track 2 | . . . . 1 1 . . . . . Assimilate 2 | . . . . 1 1 . . . . . Fabricators . | . . . . . . . . . . . Repair Stations . | . . . . . . . . . . . Recycling Units 1 | . . . . 1 . . . . . . Reject 1 | . . . . 1 . . . . . . Scanalyzers . | . . . . . . . . . . . Garrison Access . | . . . . . . . . . . . Data Cores Recovered . | . . . . . . . . . . . Used . | . . . . . . . . . . . Hacking Detections 5 | . . . . 1 2 . . . 2 . Full Trace Events 1 | . . . . 1 . . . . . . Feedback Events . | . . . . . . . . . . . Feedback Blocked . | . . . . . . . . . . . Robot Schematics Acquired . | . . . . . . . . . . . Robots Built . | . . . . . . . . . . . Authchips . | . . . . . . . . . . . Time . | . . . . . . . . . . . Total Robot Build Rating . | . . . . . . . . . . . Part Schematics Acquired . | . . . . . . . . . . . Parts Built . | . . . . . . . . . . . Authchips . | . . . . . . . . . . . Time . | . . . . . . . . . . . Total Part Build Rating . | . . . . . . . . . . . Part Studies Acquired 1 | . . . . . . . . . 1 . Parts Repaired . | . . . . . . . . . . . Time . | . . . . . . . . . . . Parts Recycled . | . . . . . . . . . . . Recycled Matter . | . . . . . . . . . . . Retrieved Matter . | . . . . . . . . . . . Retrieved Components . | . . . . . . . . . . . Parts Scanalyzed . | . . . . . . . . . . . Part Schematics Acquired . | . . . . . . . . . . . Parts Damaged . | . . . . . . . . . . . Bothacking | -11 -10 -9 -9 -8 -7 -7 -7 -7 -6 -6 ------------ Run | Yrd Mat Mat Min Mat Fac Was Fac DSF Fac Low Used RIF Installer . | . . . . . . . . . . . Robots Hacked . | . . . . . . . . . . . Non-combat . | . . . . . . . . . . . Combat . | . . . . . . . . . . . Robot Hacks Applied . | . . . . . . . . . . . Relay Couplers Released . | . . . . . . . . . . . Fabnet Peak Effective % . | . . . . . . . . . . . Robots Rewired . | . . . . . . . . . . . Allies Hacked . | . . . . . . . . . . . Hacks Repelled . | . . . . . . . . . . . Allies | -11 -10 -9 -9 -8 -7 -7 -7 -7 -6 -6 -------- Run | Yrd Mat Mat Min Mat Fac Was Fac DSF Fac Low Total Allies 3 | . . . 3 . . . . . . . Largest Group 3 | . . . 3 . . . . . . . Highest-Rated Group 40 | . . . 40 . . . . . . . Highest-Rated Ally 16 | . . . 16 . . . . . . . Initial Warlord ECA Mod 9 | . . . . . . . . . 9 9 Total Orders 1 | . . . 1 . . . . . . . GUARD 1 | . . . 1 . . . . . . . Ally Attacks 21 | . . . 21 . . . . . . . Total Damage 234 | . . . 234 . . . . . . . Kills 3 | . . . 3 . . . . . . . Allies Corrupted 1 | . . . 1 . . . . . . . Allies Melted . | . . . . . . . . . . . Intel | -11 -10 -9 -9 -8 -7 -7 -7 -7 -6 -6 ------- Run | Yrd Mat Mat Min Mat Fac Was Fac DSF Fac Low Active Infowar (turns) 3222 | 34 776 318 59 929 18 107 180 372 329 100 Optics 679 | . . 318 15 . . . . 4 329 13 Terrain 906 | . . . . 906 . . . . . . Seismic 877 | 34 776 . 44 23 . . . . . . Machine Analysis 1078 | . . . . . 18 107 180 372 329 72 ECM 379 | . . . . . . . . . 319 60 Robot Analysis Total . | . . . . . . . . . . . Derelict Logs Recovered 2 | . . . 1 . . . . . . 1 Drone Launches . | . . . . . . . . . . . Drone Recoveries . | . . . . . . . . . . . Exploration | -11 -10 -9 -9 -8 -7 -7 -7 -7 -6 -6 ------------- Run | Yrd Mat Mat Min Mat Fac Was Fac DSF Fac Low Turns Passed 6121 | 187 881 347 1038 1021 120 683 360 372 329 783 Spaces Moved 3346 | 100 494 220 739 267 137 423 110 105 247 504 Core 513 | 6 5 12 . 56 137 35 . . . 262 Treads 154 | . . . . . . 111 . . . 43 Legs 867 | 94 255 . . . . . . 72 247 199 Wheels . | . . . . . . . . . . . Hover 66 | . 66 . . . . . . . . . Flight 1746 | . 168 208 739 211 . 277 110 33 . . Fastest Speed 29 | 50 37 34 37 37 50 30 196 29 120 50 Average Speed 92 | 115 104 73 37 47 50 125 196 152 120 125 Slowest Speed 260 | 120 250 250 117 200 50 205 196 260 120 240 Overloaded Moves . | . . . . . . . . . . . Propulsion Burnouts . | . . . . . . . . . . . Robots Hopped 10 | . 3 . 3 2 . 2 . . . . Potential Cave-ins 2 | . . . . . . . . . 2 . Cave-ins Triggered . | . . . . . . . . . . . Exploration Rate (%) 40 | 4 47 23 96 27 7 97 2 57 7 80 Regions Visited 10 Branch Regions 2 Pre-discovered Areas 2 | . . . 1 . . . . . . 1 Known Exits Taken 2 | . . . 1 . . . 1 . . . Unknown Exits Taken 5 | 1 1 1 . 1 . . . . 1 . Scrap Searched 5 | . . . 1 . . . . . . 4 Spaces Dug 16 | . . . . . . . . . 16 . Terrain Destroyed 40 | . 17 . . . . . . . 16 7 Melee . | . . . . . . . . . . . Projectile 23 | . . . . . . . . . 16 7 AOE 17 | . 17 . . . . . . . . . Terrain Rammed . | . . . . . . . . . . . Walls Destroyed . | . . . . . . . . . . . Machines Disabled . | . . . . . . . . . . . Actions | -11 -10 -9 -9 -8 -7 -7 -7 -7 -6 -6 --------- Run | Yrd Mat Mat Min Mat Fac Was Fac DSF Fac Low Total 5945 | 132 759 328 1500 1131 188 570 245 231 264 597 Wait 2138 | . 143 28 755 824 50 118 119 61 . 40 Move 3318 | 99 488 219 732 262 137 418 109 104 246 504 Hop 9 | . 2 . 3 2 . 2 . . . . Pick Up 27 | 7 7 2 1 3 . . 1 1 5 . Fast Attach 84 | 5 8 11 . 2 1 19 4 15 2 17 Attach 19 | 2 1 3 2 5 . . . 2 2 2 Detach 8 | . 2 . 2 2 . 2 . . . . Swap 19 | 1 6 5 3 2 . . 2 . . . Drop 50 | . 14 7 2 4 . 8 5 7 2 1 Fire 256 | 18 87 53 . 23 . . 5 41 7 22 Melee 11 | . . . . . . . . . . 11 Ram 2 | . . . . 2 . . . . . . Kick 1 | . 1 . . . . . . . . . Crush . | . . . . . . . . . . . Escape Stasis . | . . . . . . . . . . . Rewire 3 | . . . . . . 3 . . . . Trap . | . . . . . . . . . . . Miscellaneous . | . . . . . . . . . . . Route ------- -11/Scrapyard -10/Materials (discovered 2 exits: [*Mat] / [*Min]) -9/Materials -9/Mines (discovered 3 exits: *Mat x2 / *Zio) -8/Materials -7/Factory -7/Waste -7/Factory -7/DSF -6/Factory -6/Lower Caves History --------- Turn | Location | Event 6 | -11/Scrapyard | Discovered new exit (range 16) 188 | -11/Scrapyard | Entered Materials 303 | -10/Materials | Build established: Mutant 571 | -10/Materials | Discovered new exit (range 15) 706 | -10/Materials | Core integrity fell below 50% 1061 | -10/Materials | Discovered new exit (range 14) 1069 | -10/Materials | Entered another Materials area 1069 | -9/Materials | Evolved 2 slots: Propulsion x1, Utility x1 1205 | -9/Materials | Lost 5 parts (2p3n) 1336 | -9/Materials | Core integrity fell below 50% 1382 | -9/Materials | Lost 4 parts (1p1n2w) 1394 | -9/Materials | Build established: Scavenger-Mutant 1407 | -9/Materials | Discovered new exit (range 8) 1416 | -9/Materials | Entered Mines 1418 | -9/Mines | Met a Derelict bent on vengeance 1466 | -9/Mines | A Derelict revealed a hidden shortcut to a safe place 1505 | -9/Mines | Discovered new exit (range 5) 1507 | -9/Mines | Identified exit to Materials 1522 | -9/Mines | Identified exit to Zion 1550 | -9/Mines | Assisted by bots powering up and referring to "LRC-V3" 1774 | -9/Mines | Build established: Mutant 2451 | -9/Mines | Discovered exit to Materials (range 9) 2454 | -9/Mines | Entered Materials 2454 | -8/Materials | Evolved 2 slots: Propulsion x1, Utility x1 3409 | -8/Materials | System corruption reached 10% 3456 | -8/Materials | Released all parts (1) 3470 | -8/Materials | Discovered new exit (range 10) 3475 | -8/Materials | Entered Factory 3475 | -7/Factory | Evolved 2 slots: Power x1, Utility x1 3481 | -7/Factory | Lost 8 parts (1p2n3u2w) 3562 | -7/Factory | Discovered new exit (range 9) 3595 | -7/Factory | Sucked down chute 3595 | -7/Factory | Entered Waste 3595 | -7/Waste | The area was eerily silent 3636 | -7/Waste | Found Damper Plating 3982 | -7/Waste | Discovered new exit (range 15) 4278 | -7/Waste | Entered Factory 4632 | -7/Factory | Identified exit to DSF 4638 | -7/Factory | Entered DSF 4669 | -7/DSF | Additional patrols routed to DSF 4762 | -7/DSF | Lost 4 parts (2p1n1u) 4952 | -7/DSF | Sterilization system engaged 4963 | -7/DSF | Lost 6 parts (1p3n2u) 4964 | -7/DSF | Discovered new exit (range 15) 4972 | -7/DSF | Ambient heat levels rising (+10) 4987 | -7/DSF | Ambient heat levels rising (+10) 5002 | -7/DSF | Ambient heat levels rising (+10) 5010 | -7/DSF | Entered Factory 5010 | -6/Factory | Evolved 2 slots: Utility x1, Weapon x1 5289 | -6/Factory | Build established: Scavenger-Skirmisher 5314 | -6/Factory | Discovered new exit (range 4) 5339 | -6/Factory | Entered Lower Caves 5411 | -6/Lower Caves | Released all parts (6) 5419 | -6/Lower Caves | Core integrity fell below 50% 5431 | -6/Lower Caves | Lost 10 parts (2p4n4w) 5589 | -6/Lower Caves | Met a Warlord Commander 5590 | -6/Lower Caves | Learned location of Warlord (-5) 5591 | -6/Lower Caves | Warlord Commander delivered Encrypted Comm Array 5595 | -6/Lower Caves | Found Encrypted Comm Array 5654 | -6/Lower Caves | Build established: Mutant 5683 | -6/Lower Caves | Encountered a Warlord checkpoint 5766 | -6/Lower Caves | System corruption reached 10% 5958 | -6/Lower Caves | Attracted the attention of an 0b10 checkpoint 5963 | -6/Lower Caves | Core integrity fell below 20% 5991 | -6/Lower Caves | System corruption reached 30% 6052 | -6/Lower Caves | Attracted the attention of an 0b10 outpost 6122 | -6/Lower Caves | Destroyed by G-50 Soldier with Heavy Laser Last Messages --------------- Corrupted Imp. Treads self-destruct mechanism malfunctions. Corrupted Wave Gun self-destruct mechanism malfunctions. Acquired Corrupted Wave Gun. Integrated Corrupted Wave Gun (+6). Lgt. Treads destroyed. Acquired 25 matter. 8ZL>&B5K,/ System corrupted: Flak Gun jammed. Machine disabled. Destroyed Carbon-fiber Leg. G-50 Soldier destroyed. System corrupted: Wave Gun rejected. Critical hit (Burn: +37). Map ----- +----------------------------------------------------+ | ?????????????????????????????????????????????????? | | ?????????????????????????????????????????????????? | | ?????????????????????????????????????????????????? | | ?????????????????????????????????????????????????? | | ?????????????????????????????????????????????????? | | ?????????????????????????????????????????????????? | | ?????????????????????????????????????????????????? | | ????????????????????????????????????????????????## | | ????????????????????????????????????????????????# | | ????????????????????????????? ##??????????????# | | ??????????????????????????? ??????????????# | | ?????????????????????????? ?#####????????# | | ?????????????????????????? ## #????##??## | | ??????????????????????????? #???# ##??? | | ???????????????????????????? ###? ##?# | | ????????????????????????????? ## ### | | ??????????????????????????#???# | | ?????????????????????????? ????# | | ????????????????????????# ##???# | | ?????????????????????????# #????# | | ??????????????????????##### #### #### | | ????????????????????? ##?? | | ???????????????????######## # #?? | | ???????????????????#"" """# #### #?? | | ???????????????????# =[=# #### ##?? | | ???????????????????# !%%@g% #?## ##??? | | ???????????????????###g/###%% ##?##### ##### | | ???????????????????# ?# * ####### # | | ???????????????????# ?# # | | ?????????????# ## ## # | | ?????????????# ####### # | | ??????????????????## ###????## ## | | ???????????????????## #????### ### | | ????????????????????# ##??### = ### | | ?????????????????? #??## | | ?????????????????# ## #??# ## | | ?????????????????## ##### #??## ####### ### | | ??????????????????#####????###???###??????######?? | | ?????????????????????????????????????????????????? | | ?????????????????????????????????????????????????? | | ?????????????????????????????????????????????????? | | ?????????????????????????????????????????????????? | | ?????????????????????????????????????????????????? | | ?????????????????????????????????????????????????? | | ?????????????????????????????????????????????????? | | ?????????????????????????????????????????????????? | | ?????????????????????????????????????????????????? | | ?????????????????????????????????????????????????? | | ?????????????????????????????????????????????????? | | ?????????????????????????????????????????????????? | +----------------------------------------------------+ Best States ------------- Heat Dissipation 61 Energy Generation 37 Energy Capacity 740 Matter Stores 437 Matter Capacity 450 Sight Range 20 Terrain Scan Range 16 Terrain Scan Density 210 ECM Strength 2 Additional Mass Support 9 Armor Coverage 1600 Resistance: EM 90 Propulsion Shielding 66 Evasion (%) 64 Recoil Reduction 2 Particle Charging 15 Defensive Hacking 10 Item Schematics ----------------- None Robot Schematics ------------------ None Fabricated ------------ Nothing Repaired ---------- Nothing Studied --------- Gauss Cannon | -6/Factory | Hacked Alien Tech Used ----------------- None Achievements -------------- Hot Goods Challenges ------------ None Game ------ Seed LongswordFlakChaincannon Manual? 0 Play Time 01:03:20 Cumulative 32.3 hours Start 2026.04.27 @ 13:43:53 End 2026.04.27 @ 17:40:19 Sessions 1 Manual Loads 0 Difficulty Rogue Special Mode None Game No. 63 Rogue 63 Adventurer 0 Explorer 0 Win Type - Total 0 Types 0/0/0/0/0/0/0/0/0/0 Lore% 24 Gallery% 26 Achievement% 23 Wizard Run 0 Options --------- Layout 1 ASCII 0 Keyboard 0 Movement Mouse Keybinds 0 Fullscreen 1 Font 32/SmallcapsGlow Map View 50x35 Zoom Use 0% Tactical HUD 0 Map Filters NONE Filters NONE Steam 1 RUN: 332c9db9-8658-49a7-baaf-867966fa285c